bitfinex-derivatives/quotes_BNBF0:USTF0_20241225
["timestamp","ask_amount","ask_price","bid_price","bid_amount"]
[1735088433885,2.41804958,699.94,698.21,0.28644677]
[1735088434186,2.41804958,699.93,698.21,0.28644677]
[1735088434386,2.41804414,699.92,698.21,0.28644677]
[1735088434585,2.41804414,699.91,698.21,0.28644677]
[1735088434789,2.41804414,699.9,698.21,0.28644677]
[1735088434989,2.41804414,699.89,698.21,0.28644677]
[1735088435185,0.26291021,699.88,698.21,0.28644677]
[1735088435487,2.41683305,699.87,698.21,0.28644677]
[1735088435685,2.41683305,699.86,698.21,0.28644677]
[1735088435880,2.41683305,699.85,698.21,0.28644677]
[1735088436084,2.41683305,699.84,698.21,0.28644677]
[1735088436279,2.15392284,699.83,698.21,0.28644677]
[1735088436480,2.15392284,699.82,698.21,0.28644677]
[1735088436780,2.15392284,699.81,698.21,0.28644677]
[1735088436983,2.15392284,699.8,698.21,0.28644677]
[1735088437184,2.15392284,699.79,698.21,0.28644677]
[1735088437385,2.15392284,699.78,698.21,0.28644677]
[1735088437680,2.15392284,699.77,698.21,0.28644677]
[1735088437884,2.15392284,699.76,698.21,0.28644677]
[1735088438080,2.15392284,699.75,698.21,0.28644677]
[1735088438282,2.15374206,699.74,698.21,0.28644677]
[1735088438483,2.15374206,699.73,698.21,0.28644677]
[1735088438682,2.15374206,699.72,698.21,0.28644677]
[1735088438884,2.15374206,699.71,698.21,0.28644677]
[1735088439082,2.15374206,699.7,698.21,0.28644677]
[1735088439282,2.15374206,699.69,698.21,0.28644677]
[1735088439481,2.15374206,699.68,698.21,0.28644677]
[1735088439685,1.07182841,700.26,698.21,0.28644677]
[1735088439686,2.15374206,699.67,698.21,0.28644677]
[1735088439886,2.15374206,699.66,698.21,0.28644677]
[1735088440088,2.15374206,699.65,698.21,0.28644677]
[1735088440385,2.15374206,699.64,698.21,0.28644677]
[1735088440688,2.15374206,699.63,698.21,0.28644677]
[1735088440881,2.15374206,699.62,698.21,0.28644677]
[1735088441081,2.15374206,699.61,698.21,0.28644677]
[1735088441286,2.15327174,699.6,698.21,0.28644677]
[1735088441482,2.15327174,699.59,698.21,0.28644677]
[1735088441682,2.15320103,699.58,698.21,0.28644677]
[1735088441888,2.15320103,699.57,698.21,0.28644677]
[1735088442081,2.15320103,699.56,698.21,0.28644677]
[1735088442387,2.15320103,699.55,698.21,0.28644677]
[1735088442587,2.15320103,699.54,698.21,0.28644677]
[1735088442783,2.15320103,699.53,698.21,0.28644677]
[1735088442984,2.15320103,699.52,698.21,0.28644677]
[1735088443180,0.87922414,699.51,698.21,0.28644677]
[1735088443382,2.15284572,699.5,698.21,0.28644677]
[1735088443587,2.15284572,699.49,698.21,0.28644677]
[1735088443785,2.15284572,699.48,698.21,0.28644677]
[1735088443983,2.15284572,699.47,698.21,0.28644677]
[1735088444184,1.07182841,700.36,698.21,0.28644677]
[1735088444185,0.87913144,699.46,698.21,0.28644677]
[1735088444389,0.87913144,699.45,698.21,0.28644677]
[1735088444589,1.27348736,699.44,698.21,0.28644677]
[1735088444789,2.15253471,699.43,698.21,0.28644677]
[1735088444987,1.07182841,700.37,698.21,0.28644677]
[1735088445188,2.41524388,700.36,698.21,0.28644677]
[1735088445388,2.41525146,700.35,698.21,0.28644677]
[1735088445586,2.41525146,700.34,698.21,0.28644677]
[1735088445785,3.48707987,700.33,698.21,0.28644677]
[1735088445985,2.41525146,700.32,698.21,0.28644677]
[1735088446183,2.70083927,700.31,698.21,0.28644677]
[1735088446387,2.41525146,700.3,698.21,0.28644677]
[1735088446589,2.41525146,700.29,698.21,0.28644677]
[1735088446789,2.41525146,700.28,698.21,0.28644677]
[1735088446991,2.41525146,700.27,698.21,0.28644677]
[1735088447183,1.14191605,700.26,698.21,0.28644677]
[1735088447388,0.28561636,700.24,698.21,0.28644677]
[1735088447584,2.41503205,700.23,698.21,0.28644677]
[1735088447787,2.41503205,700.22,698.21,0.28644677]
[1735088447988,2.41503205,700.21,698.21,0.28644677]
[1735088448188,2.15214166,700.2,698.21,0.28644677]
[1735088448389,2.70066432,700.19,698.21,0.28644677]
[1735088448591,2.41502757,700.18,698.21,0.28644677]
[1735088448792,2.70067248,700.17,698.21,0.28644677]
[1735088448991,2.70067656,700.16,698.21,0.28644677]
[1735088449292,2.41502757,700.15,698.21,0.28644677]
[1735088449595,2.41502757,700.14,698.21,0.28644677]
[1735088449793,0.28564899,700.16,698.21,0.28644677]
[1735088449794,2.41502757,700.13,698.21,0.28644677]
[1735088449990,2.41502757,700.12,698.21,0.28644677]
[1735088450188,2.41511032,700.11,698.21,0.28644677]
[1735088450388,2.41511032,700.1,698.21,0.28644677]
[1735088450592,2.41511032,700.09,698.21,0.28644677]
[1735088450892,2.15222441,700.08,698.21,0.28644677]
[1735088451091,2.15222441,700.07,698.21,0.28644677]
[1735088451294,2.15222441,700.06,698.21,0.28644677]
[1735088451593,2.15222441,700.05,698.21,0.28644677]
[1735088451793,2.15222441,700.04,698.21,0.28644677]
[1735088452093,0.28564899,700.16,698.21,0.28644677]
[1735088452094,2.15222441,700.03,698.21,0.28644677]
[1735088452287,2.15286335,700.02,698.21,0.28644677]
[1735088452486,2.15286335,700.01,698.21,0.28644677]
[1735088452690,2.15286335,700.0,698.21,0.28644677]
[1735088452888,0.28564899,700.16,698.21,0.28644677]
[1735088452889,2.15286335,699.99,698.21,0.28644677]
[1735088453191,0.28564899,700.16,698.21,0.28644677]
[1735088453393,2.15421406,700.15,698.21,0.28644677]
[1735088453592,2.15421406,700.14,698.21,0.28644677]
[1735088453789,2.15421406,700.13,698.21,0.28644677]
[1735088453993,2.15421406,700.12,698.21,0.28644677]
[1735088454194,2.15421406,700.11,698.21,0.28644677]
[1735088454390,2.15421406,700.1,698.21,0.28644677]
[1735088454598,2.15421406,700.09,698.21,0.28644677]
[1735088454795,2.41711746,700.08,698.21,0.28644677]
[1735088454993,2.41711746,700.07,698.21,0.28644677]
[1735088455195,2.41711746,700.06,698.21,0.28644677]
[1735088455392,2.41711746,700.05,698.21,0.28644677]
[1735088455592,2.41711746,700.04,698.21,0.28644677]
[1735088455796,2.15421406,700.03,698.21,0.28644677]
[1735088456096,2.15421406,700.02,698.21,0.28644677]
[1735088456290,0.28564899,700.16,698.21,0.28644677]
[1735088456291,2.41887597,700.01,698.21,0.28644677]
[1735088456493,2.41887597,700.0,698.21,0.28644677]
[1735088456697,2.41887597,699.99,698.21,0.28644677]
[1735088456894,2.41887597,699.98,698.21,0.28644677]
[1735088457198,2.41887597,699.97,698.21,0.28644677]
[1735088457399,2.15597495,699.96,698.21,0.28644677]
[1735088457598,2.15597495,699.95,698.21,0.28644677]
[1735088457805,2.15597495,699.94,698.21,0.28644677]
[1735088457996,2.15597495,699.93,698.21,0.28644677]
[1735088458297,2.15597495,699.92,698.21,0.28644677]
[1735088458494,2.15597495,699.91,698.21,0.28644677]
[1735088458797,2.15597495,699.9,698.21,0.28644677]
[1735088458993,2.15597495,699.89,698.21,0.28644677]
[1735088459300,2.15730708,699.88,698.21,0.28644677]
[1735088459500,2.15782024,699.87,698.21,0.28644677]
[1735088459693,0.28564899,700.16,698.21,0.28644677]
[1735088459694,2.15913569,699.86,698.21,0.28644677]
[1735088459895,2.15913569,699.85,698.21,0.28644677]
[1735088460094,2.15913569,699.84,698.21,0.28644677]
[1735088460293,2.15913569,699.83,698.21,0.28644677]
[1735088460498,2.15913569,699.82,698.21,0.28644677]
[1735088460699,2.15913569,699.81,698.21,0.28644677]
[1735088460900,2.15913569,699.8,698.21,0.28644677]
[1735088461095,2.15913569,699.79,698.21,0.28644677]
[1735088461302,2.15915883,699.78,698.21,0.28644677]
[1735088461501,2.15915883,699.77,698.21,0.28644677]
[1735088461705,2.15915883,699.76,698.21,0.28644677]
[1735088461895,2.15915883,699.75,698.21,0.28644677]
[1735088462098,2.15915883,699.74,698.21,0.28644677]
[1735088462299,2.15915883,699.73,698.21,0.28644677]
[1735088462496,2.15915883,699.72,698.21,0.28644677]
[1735088462699,2.15915883,699.71,698.21,0.28644677]
[1735088462897,2.15915883,699.7,698.21,0.28644677]
[1735088463101,2.15915883,699.69,698.21,0.28644677]
[1735088463297,2.15915883,699.68,698.21,0.28644677]
[1735088463497,2.15915883,699.67,698.21,0.28644677]
[1735088463703,2.15915883,699.66,698.21,0.28644677]
[1735088463903,2.15915883,699.65,698.21,0.28644677]
[1735088464098,2.15915883,699.64,698.21,0.28644677]
[1735088464300,0.88296588,699.63,698.21,0.28644677]
[1735088464505,2.1620021,699.62,698.21,0.28644677]
[1735088464705,2.1620021,699.61,698.21,0.28644677]
[1735088464905,2.1620021,699.6,698.21,0.28644677]
[1735088465206,2.1620021,699.59,698.21,0.28644677]
[1735088465507,2.1620021,699.58,698.21,0.28644677]
[1735088465706,2.1620021,699.57,698.21,0.28644677]
[1735088465907,0.28564899,700.16,698.21,0.28644677]
[1735088465908,2.1620021,699.56,698.21,0.28644677]
[1735088466107,2.1620021,699.55,698.21,0.28644677]
[1735088466308,2.1620021,699.54,698.21,0.28644677]
[1735088466508,2.1620021,699.53,698.21,0.28644677]
[1735088466703,2.1620021,699.52,698.21,0.28644677]
[1735088466905,2.1620021,699.51,698.29,1.06947192]
[1735088467103,1.07182841,700.04,698.29,1.06947192]
[1735088467307,2.42548112,700.03,698.29,1.06947192]
[1735088467509,2.42548112,700.02,698.27,1.06947192]
[1735088467710,2.42548112,700.01,698.27,1.06947192]
[1735088468010,2.42548112,700.0,698.27,1.06947192]
[1735088468210,2.42548112,699.99,698.27,1.06947192]
[1735088468511,2.42548112,699.98,698.25,1.06947192]
[1735088468810,2.42548112,699.97,698.25,1.06947192]
[1735088469011,2.42548112,699.96,698.27,0.28642215]
[1735088469212,2.42548112,699.95,698.27,0.28642215]
[1735088469408,2.42548112,699.94,698.29,1.06947192]
[1735088469711,2.42546879,699.93,698.31,0.28640575]
[1735088469911,2.42546879,699.92,698.31,0.28640575]
[1735088470112,1.14608761,699.91,698.31,0.28640575]
[1735088470308,0.88320217,699.9,698.31,0.28640575]
[1735088470511,2.16292247,699.89,698.31,0.28640575]
[1735088470710,0.88349116,699.88,698.31,0.28640575]
[1735088470907,2.16329295,699.87,698.31,0.28640575]
[1735088471213,2.16329295,699.86,698.31,0.28640575]
[1735088471410,2.16329295,699.85,698.31,0.28640575]
[1735088471713,2.16329295,699.84,698.31,0.28640575]
[1735088471912,2.16329295,699.83,698.31,0.28640575]
[1735088472112,2.16329295,699.82,698.31,0.28640575]
[1735088472312,2.16329295,699.81,698.31,0.28640575]
[1735088472513,2.16329295,699.8,698.31,0.28640575]
[1735088472709,2.16329295,699.79,698.31,0.28640575]
[1735088472914,2.16329295,699.78,698.31,0.28640575]
[1735088473208,1.07182841,700.11,698.31,0.28640575]
[1735088473415,2.42646815,700.1,698.31,0.28640575]
[1735088473611,2.42646815,700.09,698.31,0.28640575]
[1735088473807,2.71214978,700.08,698.31,0.28640575]
[1735088474011,2.42646815,700.07,698.31,0.28640575]
[1735088474206,2.71215794,700.06,698.31,0.28640575]
[1735088474412,2.42646815,700.05,698.31,1.35587767]
[1735088474610,2.42646815,700.04,698.31,1.35587767]
[1735088474809,2.42646815,700.03,698.31,1.35587767]
[1735088475012,2.42646815,700.02,698.31,1.35587767]
[1735088475215,2.42646815,700.01,698.31,1.35587767]
[1735088475515,0.28568979,700.06,698.31,1.35587767]
[1735088475516,2.42646815,700.0,698.31,0.28640575]
[1735088475708,2.42646815,699.99,698.31,0.28640575]
[1735088475913,2.42646815,699.98,698.31,0.28640575]
[1735088476113,2.42646815,699.97,698.31,1.35587767]
[1735088476308,0.28568979,700.06,698.31,1.35587767]
[1735088476309,0.262893,699.96,698.31,1.35587767]
[1735088476615,2.42709631,699.95,698.31,1.35587767]
[1735088476817,2.16421007,699.94,698.31,1.35587767]
[1735088477017,2.16421007,699.93,698.32,1.06947192]
[1735088477210,2.16421007,699.92,698.32,1.06947192]
[1735088477515,2.42709221,699.91,698.32,1.06947192]
[1735088477715,2.42709221,699.9,698.32,1.06947192]
[1735088478018,2.1642861,699.89,698.32,1.06947192]
[1735088478215,2.1642861,699.88,698.43,1.06947192]
[1735088478416,2.1642861,699.87,698.43,1.06947192]
[1735088478615,2.1642861,699.86,698.43,1.06947192]
[1735088478810,2.1642861,699.85,698.43,1.06947192]
[1735088479115,2.1642861,699.84,698.45,1.06947192]
[1735088479317,0.88386492,699.83,698.45,1.06947192]
[1735088479515,2.16444558,699.82,698.45,1.06947192]
[1735088479712,0.28568979,700.06,698.45,1.06947192]
[1735088479918,2.42755797,700.05,698.36,1.06947192]
[1735088480212,2.16467813,700.04,698.36,1.06947192]
[1735088480418,2.16467813,700.03,698.36,1.06947192]
[1735088480619,2.16467813,700.02,698.31,0.28640575]
[1735088480813,2.16467813,700.01,698.31,0.28640575]
[1735088481014,2.16467813,700.0,698.31,0.28640575]
[1735088481216,2.16467813,699.99,698.31,0.28640575]
[1735088481417,2.16467813,699.98,698.31,0.28640575]
[1735088481618,2.16462266,699.97,698.31,0.28640575]
[1735088481817,2.16462266,699.96,698.31,0.28640575]
[1735088482010,2.16462266,699.95,698.31,0.28640575]
[1735088482214,2.16462266,699.94,698.31,0.28640575]
[1735088482415,2.16454353,699.93,698.31,0.28640575]
[1735088482612,2.16454,699.92,698.31,0.28640575]
[1735088482814,2.16454,699.91,698.31,0.28640575]
[1735088483017,2.16454,699.9,698.31,0.28640575]
[1735088483215,2.16454,699.89,698.31,0.28640575]
[1735088483416,2.16454,699.88,698.31,0.28640575]
[1735088483715,2.16454,699.87,698.31,0.28640575]
[1735088483915,0.28568979,700.06,698.31,0.28640575]
[1735088483916,2.16454,699.86,698.31,0.28640575]
[1735088484116,2.16454,699.85,698.31,0.28640575]
[1735088484315,2.16454,699.84,698.31,0.28640575]
[1735088484515,2.16454,699.83,698.31,0.28640575]
[1735088484716,2.16454,699.82,698.31,0.28640575]
[1735088484917,2.16454,699.81,698.31,0.28640575]
[1735088485113,2.16454,699.8,698.31,0.28640575]
[1735088485319,0.28568979,700.06,698.31,0.28640575]
[1735088485621,2.16451299,700.05,698.31,0.28640575]
[1735088485820,2.16451299,700.04,698.31,0.28640575]
[1735088486022,2.16451299,700.03,698.31,0.28640575]
[1735088486222,2.16451299,700.02,698.31,0.28640575]
[1735088486414,2.16451299,700.01,698.31,0.28640575]
[1735088486615,2.16451299,700.0,698.31,0.28640575]
[1735088486820,2.16451299,699.99,698.31,0.28640575]
[1735088487021,2.16451299,699.98,698.31,0.28640575]
[1735088487222,2.16451299,699.97,698.31,0.28640575]
[1735088487419,2.16451299,699.96,698.31,0.28640575]
[1735088487622,0.28568979,700.06,698.31,0.28640575]
[1735088487623,2.16451299,699.95,698.31,0.28640575]
[1735088487823,2.16451299,699.94,698.31,0.28640575]
[1735088488030,2.16451299,699.93,698.31,0.28640575]
[1735088488318,0.88401062,699.92,698.31,0.28640575]
[1735088488524,2.16456814,699.91,698.31,0.28640575]
[1735088488723,1.28055752,699.9,698.31,0.28640575]
[1735088488924,2.16457131,699.89,698.31,0.28640575]
[1735088489219,2.16457131,699.88,698.31,0.28640575]
[1735088489420,0.28568979,700.06,698.31,0.28640575]
[1735088489421,2.16457131,699.87,698.31,0.28640575]
[1735088489624,2.16457131,699.86,698.31,0.28640575]
[1735088489823,2.16457131,699.85,698.31,0.28640575]
[1735088490024,2.16457131,699.84,698.31,0.28640575]
[1735088490324,2.16457131,699.83,698.31,0.28640575]
[1735088490524,2.16457131,699.82,698.31,0.28640575]
[1735088490824,0.28568979,700.06,698.31,0.28640575]
[1735088490825,2.16457131,699.81,698.31,0.28640575]
[1735088491024,2.16457131,699.8,698.31,0.28640575]
[1735088491218,0.28568979,700.06,698.31,0.28640575]
[1735088491422,1.2806442,699.79,698.31,0.28640575]
[1735088491624,2.16471504,699.78,698.31,0.28640575]
[1735088491924,2.16471504,699.77,698.31,0.28640575]
[1735088492126,2.16471504,699.76,698.34,1.06947192]
[1735088492318,2.16471504,699.75,698.34,1.06947192]
[1735088492519,2.16471504,699.74,698.34,1.06947192]
[1735088492825,2.16471504,699.73,698.34,1.06947192]
[1735088493126,2.16471504,699.72,698.38,1.06947192]
[1735088493428,2.16471504,699.71,698.38,1.06947192]
[1735088493629,2.16471504,699.7,698.38,1.06947192]
[1735088493826,2.16471504,699.69,698.38,1.06947192]
[1735088494028,2.16471504,699.68,698.37,1.06947192]
[1735088494228,0.28568979,700.06,698.37,1.06947192]
[1735088494427,1.2807037,699.67,698.39,0.28637294]
[1735088494626,2.16481446,699.66,698.39,0.28637294]
[1735088494824,2.16481446,699.65,698.39,0.28637294]
[1735088495027,0.28568979,700.06,698.39,0.28637294]
[1735088495028,2.16481446,699.64,698.39,0.28637294]
[1735088495223,2.16481446,699.63,698.39,0.28637294]
[1735088495428,2.16481446,699.62,698.39,0.28637294]
[1735088495625,2.16481446,699.61,698.39,0.28637294]
[1735088495828,2.16481446,699.6,698.39,0.28637294]
[1735088496029,2.16481446,699.59,698.39,0.28637294]
[1735088496230,2.16481446,699.58,698.39,0.28637294]
[1735088496430,2.16481446,699.57,698.39,0.28637294]
[1735088496629,2.16481446,699.56,698.39,0.28637294]
[1735088496829,2.16481446,699.55,698.39,0.28637294]
[1735088497135,2.16481446,699.54,698.39,0.28637294]
[1735088497434,2.16480208,699.53,698.39,0.28637294]
[1735088497630,0.88410298,699.52,698.39,0.28637294]
[1735088497829,2.16447718,699.51,698.39,0.28637294]
[1735088498033,2.16447718,699.5,698.39,0.28637294]
[1735088498234,2.16447718,699.49,698.39,0.28637294]
[1735088498435,2.16447718,699.48,698.39,0.28637294]
[1735088498740,2.16447718,699.47,698.39,0.28637294]
[1735088498932,2.16447718,699.46,698.39,0.28637294]
[1735088499129,2.16445783,699.45,698.39,0.28637294]
[1735088499329,2.16445783,699.44,698.39,0.28637294]
[1735088499529,2.16445783,699.43,698.39,0.28637294]
[1735088499734,2.16445783,699.42,698.39,0.28637294]
[1735088499934,2.16445783,699.41,698.39,0.28637294]
[1735088500231,2.16407724,699.4,698.39,0.28637294]
[1735088500433,2.16407724,699.39,698.39,1.35584486]
[1735088500629,0.28568979,700.06,698.39,1.35584486]
[1735088500830,2.42678268,700.05,698.39,1.35584486]
[1735088501032,2.42678268,700.04,698.39,1.35584486]
[1735088501231,2.42678268,700.03,698.46,1.06947192]
[1735088501434,2.42678268,700.02,698.46,1.06947192]
[1735088501634,2.42678031,700.01,698.46,1.06947192]
[1735088501835,2.16393957,700.0,698.46,1.06947192]
[1735088502034,2.16393957,699.99,698.46,1.06947192]
[1735088502235,2.16393957,699.98,698.46,1.06947192]
[1735088502430,2.16393957,699.97,698.46,1.06947192]
[1735088502632,2.16393957,699.96,698.46,1.06947192]
[1735088502836,2.16393957,699.95,698.48,0.28633604]
[1735088503037,2.16393957,699.94,698.48,0.28633604]
[1735088503231,0.88363,699.93,698.48,0.28633604]
[1735088503435,2.1636476,699.92,698.48,0.28633604]
[1735088503733,2.1636476,699.91,698.48,0.28633604]
[1735088503934,2.1636476,699.9,698.48,0.28633604]
[1735088504132,2.1636476,699.89,698.48,0.28633604]
[1735088504337,2.1636476,699.88,698.48,0.28633604]
[1735088504538,2.1636476,699.87,698.48,0.28633604]
[1735088504838,2.1636476,699.86,698.48,0.28633604]
[1735088505039,2.1636476,699.85,698.48,0.28633604]
[1735088505238,2.1636476,699.84,698.48,0.28633604]
[1735088505441,2.1636476,699.83,698.48,0.28633604]
[1735088505736,2.1636476,699.82,698.48,0.28633604]
[1735088505941,2.1636476,699.81,698.48,0.28633604]
[1735088506240,0.88339997,699.8,698.48,0.28633604]
[1735088506434,2.16308498,699.79,698.48,0.28633604]
[1735088506634,0.28568979,700.06,698.48,0.28633604]
[1735088506834,2.16290026,700.05,698.48,0.28633604]
[1735088507132,0.28568979,700.06,698.48,0.28633604]
[1735088507133,2.16290026,700.04,698.48,0.28633604]
[1735088507336,2.16290026,700.03,698.48,0.28633604]
[1735088507534,2.16290026,700.02,698.48,0.28633604]
[1735088507840,2.16290026,700.01,698.48,0.28633604]
[1735088508039,2.16290026,700.0,698.48,0.28633604]
[1735088508239,2.16290026,699.99,698.48,0.28633604]
[1735088508440,1.27957573,699.98,698.48,0.28633604]
[1735088508740,2.16289393,699.97,698.48,0.28633604]
[1735088509040,2.16289393,699.96,698.48,0.28633604]
[1735088509237,0.8833182,699.95,698.48,0.28633604]
[1735088509434,2.16286946,699.94,698.48,0.28633604]
[1735088509638,2.16286946,699.93,698.48,0.28633604]
[1735088509842,2.16286946,699.92,698.48,0.28633604]
[1735088510141,2.16286946,699.91,698.48,0.28633604]
[1735088510341,2.16286946,699.9,698.48,0.28633604]
[1735088510542,2.16286946,699.89,698.48,0.28633604]
[1735088510738,2.16286946,699.88,698.48,0.28633604]
[1735088510943,2.16286946,699.87,698.48,0.28633604]
[1735088511144,2.16286946,699.86,698.48,0.28633604]
[1735088511344,2.16286946,699.85,698.48,0.28633604]
[1735088511644,2.16286946,699.84,698.48,0.28633604]
[1735088511840,2.16286946,699.83,698.48,0.28633604]
[1735088512042,2.16286946,699.82,698.48,0.28633604]
[1735088512236,0.28568979,700.06,698.48,0.28633604]
[1735088512438,0.88334848,699.81,698.48,0.28633604]
[1735088512641,2.16294902,699.8,698.48,0.28633604]
[1735088512838,2.16294902,699.79,698.48,0.28633604]
[1735088513037,2.16294902,699.78,698.48,0.28633604]
[1735088513238,2.16294902,699.77,698.48,0.28633604]
[1735088513438,2.16294902,699.76,698.48,0.28633604]
[1735088513642,2.16294902,699.75,698.48,0.28633604]
[1735088513843,2.16294902,699.74,698.48,0.28633604]
[1735088514043,2.16294902,699.73,698.48,0.28633604]
[1735088514245,2.16294902,699.72,698.48,0.28633604]
[1735088514446,2.16294902,699.71,698.48,0.28633604]
[1735088514742,2.16294902,699.7,698.48,0.28633604]
[1735088514943,2.16294902,699.69,698.48,0.28633604]
[1735088515141,2.16294902,699.68,698.48,0.28633604]
[1735088515340,0.28568979,700.06,698.48,0.28633604]
[1735088515547,2.16313009,700.05,698.48,0.28633604]
[1735088515741,2.42599054,700.04,698.48,0.28633604]
[1735088515942,1.54261946,700.03,698.48,0.28633604]
[1735088516145,2.16321636,700.02,698.48,0.28633604]
[1735088516342,2.16321636,700.01,698.48,0.28633604]
[1735088516541,2.16321636,700.0,698.48,0.28633604]
[1735088516744,2.16321636,699.99,698.48,0.28633604]
[1735088516942,2.16321636,699.98,698.48,0.28633604]
[1735088517144,2.16321636,699.97,698.48,0.28633604]
[1735088517343,2.16321636,699.96,698.48,0.28633604]
[1735088517548,2.16321636,699.95,698.48,0.28633604]
[1735088517847,2.16321636,699.94,698.48,0.28633604]
[1735088518042,2.16321636,699.93,698.48,0.28633604]
[1735088518245,2.16321636,699.92,698.48,0.28633604]
[1735088518448,0.8834979,699.91,698.48,0.28633604]
[1735088518642,2.16331657,699.9,698.48,0.28633604]
[1735088518842,2.16331657,699.89,698.48,0.28633604]
[1735088519046,2.16331657,699.88,698.48,0.28633604]
[1735088519244,2.16331657,699.87,698.48,0.28633604]
[1735088519443,2.16331657,699.86,698.48,0.28633604]
[1735088519642,2.16331657,699.85,698.48,0.28633604]
[1735088519942,2.16331657,699.84,698.48,0.28633604]
[1735088520145,2.16331657,699.83,698.48,0.28633604]
[1735088520447,2.16331657,699.82,698.48,0.28633604]
[1735088520650,2.16331657,699.81,698.48,0.28633604]
[1735088520845,2.16331657,699.8,698.48,0.28633604]
[1735088521044,2.16331657,699.79,698.48,0.28633604]
[1735088521246,2.16331657,699.78,698.48,0.28633604]
[1735088521445,2.16331657,699.77,698.48,0.28633604]
[1735088521642,2.16331657,699.76,698.48,0.28633604]
[1735088521847,2.16331657,699.75,698.48,0.28633604]
[1735088522047,2.16331657,699.74,698.48,0.28633604]
[1735088522247,2.16331657,699.73,698.48,0.28633604]
[1735088522448,2.16331657,699.72,698.48,0.28633604]
[1735088522649,2.16331657,699.71,698.48,0.28633604]
[1735088522848,2.16331657,699.7,698.48,0.28633604]
[1735088523046,2.16331657,699.69,698.48,0.28633604]
[1735088523249,0.28568979,700.06,698.48,0.28633604]
[1735088523250,2.16331657,699.68,698.48,0.28633604]
[1735088523445,0.28568979,700.06,698.48,0.28633604]
[1735088523651,2.42645535,700.05,698.48,0.28633604]
[1735088523851,0.28568979,700.06,698.48,0.28633604]
[1735088524053,1.14648288,700.05,698.48,0.28633604]
[1735088524253,2.16362064,700.04,698.48,0.28633604]
[1735088524453,2.16362064,700.03,698.48,0.28633604]
[1735088524652,2.16362064,700.02,698.48,0.28633604]
[1735088524849,2.16362064,700.01,698.48,0.28633604]
[1735088525050,2.16362064,700.0,698.48,0.28633604]
[1735088525250,2.16362064,699.99,698.48,0.28633604]
[1735088525450,2.16362064,699.98,698.48,0.28633604]
[1735088525650,2.16362064,699.97,698.48,0.28633604]
[1735088525854,2.16362064,699.96,698.48,0.28633604]
[1735088526057,2.16362064,699.95,698.48,0.28633604]
[1735088526256,2.16362064,699.94,698.48,0.28633604]
[1735088526456,2.16362064,699.93,698.48,0.28633604]
[1735088526649,0.28568979,700.06,698.48,0.28633604]
[1735088526650,2.16362064,699.92,698.48,0.28633604]
[1735088526851,2.16362064,699.91,698.48,0.28633604]
[1735088527053,2.16362064,699.9,698.48,0.28633604]
[1735088527255,2.16362064,699.89,698.48,0.28633604]
[1735088527450,2.16362064,699.88,698.48,0.28633604]
[1735088527651,2.16362064,699.87,698.48,0.28633604]
[1735088527854,2.16362064,699.86,698.48,0.28633604]
[1735088528052,2.16362064,699.85,698.48,0.28633604]
[1735088528251,2.16362064,699.84,698.48,0.28633604]
[1735088528457,2.16362064,699.83,698.48,0.28633604]
[1735088528657,2.16362064,699.82,698.48,0.28633604]
[1735088528851,2.16362064,699.81,698.48,0.28633604]
[1735088529055,2.16362064,699.8,698.48,0.28633604]
[1735088529252,2.16362064,699.79,698.48,0.28633604]
[1735088529456,0.28568979,700.06,698.48,0.28633604]
[1735088529653,2.42643455,700.05,698.48,0.28633604]
[1735088529857,2.42643485,700.04,698.48,0.28633604]
[1735088530059,2.42643485,700.03,698.48,0.28633604]
[1735088530259,2.42643485,700.02,698.48,0.28633604]
[1735088530459,2.1635935,700.01,698.48,0.28633604]
[1735088530660,2.1635935,700.0,698.48,0.28633604]
[1735088530854,2.1635935,699.99,698.48,0.28633604]
[1735088531159,2.1635935,699.98,698.48,0.28633604]
[1735088531358,2.1635935,699.97,698.48,0.28633604]
[1735088531559,2.1635935,699.96,698.48,0.28633604]
[1735088531758,2.1635935,699.95,698.48,0.28633604]
[1735088531960,2.1635935,699.94,698.51,1.06947192]
[1735088532160,2.1635935,699.93,698.51,1.06947192]
[1735088532360,2.1635935,699.92,698.51,1.06947192]
[1735088532560,2.16351956,699.91,698.51,1.06947192]
[1735088532860,0.88357568,699.9,698.51,1.06947192]
[1735088533061,2.16338133,699.89,698.54,1.06947192]
[1735088533260,2.16338133,699.88,698.54,1.06947192]
[1735088533460,2.16338133,699.87,698.56,0.28630325]
[1735088533662,2.16338133,699.86,698.56,0.28630325]
[1735088533861,2.16338133,699.85,698.56,0.28630325]
[1735088534062,2.16338133,699.84,698.56,0.28630325]
[1735088534261,2.16338133,699.83,698.56,0.28630325]
[1735088534461,2.16338133,699.82,698.56,0.28630325]
[1735088534663,2.16338133,699.81,698.56,0.28630325]
[1735088534858,2.16338133,699.8,698.56,0.28630325]
[1735088535157,2.16338133,699.79,698.56,0.28630325]
[1735088535365,0.28568979,700.06,698.56,0.28630325]
[1735088535557,1.27975932,699.78,698.56,0.28630325]
[1735088535760,2.16321017,699.77,698.56,0.28630325]
[1735088535963,2.16321017,699.76,698.56,0.28630325]
[1735088536260,0.28568979,700.06,698.56,0.28630325]
[1735088536261,2.16321017,699.75,698.56,0.28630325]
[1735088536460,2.16321017,699.74,698.56,0.28630325]